bitfinex/quotes_SOLUSD_20250102
["timestamp","ask_amount","ask_price","bid_price","bid_amount"]
[1735793055159,22.94035663,204.9,204.82,22.94035663]
[1735793055336,23.776884,204.87,204.8,22.94035663]
[1735793056152,22.94035663,204.88,204.8,22.94035663]
[1735793056535,12.1986,204.94,204.84,22.94035663]
[1735793056734,22.94035663,204.92,204.84,22.94035663]
[1735793057960,22.94035663,204.88,204.8,22.94035663]
[1735793058330,22.94035663,204.9,204.82,22.94035663]
[1735793058641,22.94035663,204.93,204.85,22.94035663]
[1735793059455,22.94035663,204.95,204.87,22.94035663]
[1735793060566,22.94035663,204.93,204.85,22.94035663]
[1735793060736,22.94035663,204.93,204.86,0.73198971]
[1735793060936,22.94035663,204.89,204.81,22.94035663]
[1735793061942,22.94035663,204.87,204.79,22.94035663]
[1735793062564,22.94035663,204.85,204.77,22.94035663]
[1735793062944,22.94035663,204.83,204.76,0.73232278]
[1735793063461,25.39325663,204.89,204.81,22.94035663]
[1735793063645,25.39325663,204.89,204.82,0.73212142]
[1735793063843,25.39325663,204.89,204.81,22.94035663]
[1735793065564,22.94035663,204.87,204.81,22.94035663]
[1735793066057,22.94035663,204.87,204.74,2.69205937]
[1735793066058,22.94035663,204.82,204.74,2.69205937]
[1735793066263,22.94035663,204.82,204.74,1.95982694]
[1735793066444,22.94035663,204.84,204.75,22.94035663]
[1735793066646,22.94035663,204.84,204.77,22.94035663]
[1735793067252,22.94035663,204.82,204.75,22.94035663]
[1735793068057,22.94035663,204.82,204.73,22.94035663]
[1735793068261,22.94035663,204.82,204.73,23.67281464]
[1735793068464,22.94035663,204.84,204.75,22.94035663]
[1735793068640,22.94035663,204.84,204.76,0.73230687]
[1735793069171,22.94035663,204.83,204.76,0.73230687]
[1735793069340,22.94035663,204.81,204.73,22.94035663]
[1735793069545,22.94035663,204.81,204.74,0.73248968]
[1735793070163,22.94035663,204.77,204.69,23.67277322]
[1735793070367,22.94035663,204.79,204.71,22.94035663]
[1735793070555,22.94035663,204.83,204.75,22.94035663]
[1735793070754,22.94035663,204.85,204.77,22.94035663]
[1735793071286,22.94035663,204.85,204.78,0.73229191]
[1735793071779,22.94035663,204.87,204.79,22.94035663]
[1735793072083,22.94035663,204.87,204.8,0.7321759]
[1735793072397,22.94035663,204.87,204.79,22.94035663]
[1735793072750,22.94035663,204.87,204.77,22.94035663]
[1735793072955,2.4529,204.89,204.73,0.7322679]
[1735793072956,22.94035663,204.83,204.73,0.7322679]
[1735793073156,22.94035663,204.83,204.75,22.94035663]
[1735793073563,2.4529,204.89,204.73,22.94035663]
[1735793073564,22.94035663,204.81,204.73,22.94035663]
[1735793074655,22.94035663,204.79,204.71,22.94035663]
[1735793075951,22.94035663,204.79,204.69,0.73239509]
[1735793075952,22.94035663,204.8,204.73,22.94035663]
[1735793076252,22.94035663,204.79,204.72,22.94035663]
[1735793076672,22.94035663,204.79,204.69,0.73239509]
[1735793076860,22.94035663,204.81,204.72,22.94035663]
[1735793077754,22.94035663,204.79,204.72,22.94035663]
[1735793077969,23.776884,204.76,204.7,22.94035663]
[1735793078166,22.94035663,204.75,204.67,22.94035663]
[1735793078670,22.94035663,204.8,204.71,22.94035663]
[1735793078874,22.94035663,204.82,204.74,22.94035663]
[1735793079266,22.94035663,204.78,204.71,22.94035663]
[1735793079567,35.982084,204.83,204.73,22.94035663]
[1735793079568,22.94035663,204.81,204.73,22.94035663]
[1735793079970,22.94035663,204.82,204.75,22.94035663]
[1735793080274,22.94035663,204.81,204.74,22.94035663]
[1735793080570,23.776884,204.8,204.73,22.94035663]
[1735793080773,22.94035663,204.79,204.71,22.94035663]
[1735793081161,22.94035663,204.8,204.73,22.94035663]
[1735793081358,22.94035663,204.82,204.74,22.94035663]
[1735793081560,22.94035663,204.86,204.79,22.94035663]
[1735793081758,22.94035663,204.88,204.79,22.94035663]
[1735793082473,22.94035663,204.87,204.8,22.94035663]
[1735793082674,22.94035663,204.84,204.76,22.94035663]
[1735793082876,22.94035663,204.82,204.75,22.94035663]
[1735793083073,22.94035663,204.83,204.75,22.94035663]
[1735793083377,22.94035663,204.8,204.73,22.94035663]
[1735793083574,22.94035663,204.8,204.68,0.73244503]
[1735793083874,22.94035663,204.8,204.72,22.94035663]
[1735793084075,39.0581,204.89,204.76,22.94035663]
[1735793084276,22.94035663,204.83,204.76,22.94035663]
[1735793084663,22.94035663,204.85,204.78,22.94035663]
[1735793084882,22.94035663,204.86,204.79,22.94035663]
[1735793086061,23.776884,204.88,204.76,22.94035663]
[1735793086257,22.94035663,204.82,204.74,22.94035663]
[1735793086456,22.94035663,204.83,204.75,22.94035663]
[1735793086666,22.94035663,204.85,204.78,22.94035663]
[1735793086863,22.94035663,204.84,204.77,22.94035663]
[1735793087357,22.94035663,204.85,204.78,22.94035663]
[1735793087553,25.39325663,204.89,204.82,22.94035663]
[1735793087758,25.39325663,204.89,204.81,22.94035663]
[1735793087974,22.94035663,204.86,204.79,22.94035663]
[1735793088464,25.39325663,204.89,204.81,22.94035663]
[1735793088657,22.94035663,204.86,204.79,22.94035663]
[1735793089059,22.94035663,204.85,204.78,22.94035663]
[1735793089279,22.94035663,204.88,204.8,22.94035663]
[1735793089579,22.94035663,204.92,204.85,22.94035663]
[1735793089783,25.45075663,204.95,204.88,22.94035663]
[1735793090076,46.71724063,204.92,204.85,22.94035663]
[1735793090283,22.94035663,204.86,204.79,22.94035663]
[1735793090666,22.94035663,204.87,204.8,22.94035663]
[1735793090868,22.94035663,204.89,204.81,22.94035663]
[1735793091067,22.94035663,204.91,204.83,22.94035663]
[1735793091267,22.94035663,204.92,204.85,22.94035663]
[1735793091471,22.94035663,204.91,204.84,22.94035663]
[1735793091872,22.94035663,204.88,204.8,22.94035663]
[1735793092476,22.94035663,204.93,204.76,0.73206873]
[1735793092477,22.94035663,204.81,204.76,0.73206873]
[1735793092676,22.94035663,204.81,204.74,22.94035663]
[1735793093267,22.94035663,204.83,204.74,22.94035663]
[1735793093684,22.94035663,204.83,204.76,22.94035663]
[1735793094065,22.94035663,204.83,204.74,22.94035663]
[1735793094266,22.94035663,204.81,204.74,22.94035663]
[1735793095295,28.776884,204.9,204.72,22.94035663]
[1735793095296,22.94035663,204.79,204.72,22.94035663]
[1735793095481,22.94035663,204.77,204.7,22.94035663]
[1735793095898,22.94035663,204.75,204.67,23.67291711]
[1735793096207,22.94035663,204.73,204.65,22.94035663]
[1735793096881,22.94035663,204.73,204.66,22.94035663]
[1735793097070,22.94035663,204.72,204.64,22.94035663]
[1735793097472,23.776884,204.69,204.58,0.73281356]
[1735793097675,33.07885663,204.7,204.6,22.94035663]
[1735793097676,22.94035663,204.68,204.6,22.94035663]
[1735793097987,22.94035663,204.64,204.57,22.94035663]
[1735793098788,22.94035663,204.65,204.57,22.94035663]
[1735793099269,46.71724063,204.61,204.54,0.73306539]
[1735793099474,22.94035663,204.56,204.49,22.94035663]
[1735793099668,22.94035663,204.56,204.5,0.73326298]
[1735793100087,22.94035663,204.55,204.48,23.67363722]
[1735793100291,22.94035663,204.54,204.48,23.67363722]
[1735793100487,22.94035663,204.55,204.48,23.67363722]
[1735793100801,22.94035663,204.54,204.47,22.94035663]
[1735793101292,22.94035663,204.5,204.43,22.94035663]
[1735793101791,22.94035663,204.49,204.42,22.94035663]
[1735793101994,22.94035663,204.48,204.41,43.26870424]
[1735793102203,22.94035663,204.47,204.41,20.32834761]
[1735793102374,23.776884,204.56,204.39,22.94035663]
[1735793102375,22.94035663,204.46,204.39,22.94035663]
[1735793102573,22.94035663,204.52,204.45,22.94035663]
[1735793102791,22.94035663,204.6,204.46,0.73342817]
[1735793102968,12.6686,204.67,204.49,30.0]
[1735793103171,10.1385,204.72,204.54,5.0]
[1735793103394,10.1385,204.72,204.55,0.73280564]
[1735793103580,23.776884,204.71,204.55,0.73280564]
[1735793103893,0.73280564,204.71,204.48,1.22607787]
[1735793104079,4.99999436,204.49,204.48,1.22607787]
[1735793104272,22.94035663,204.53,204.48,1.22607787]
[1735793104471,22.94035663,204.53,204.46,0.73363325]
[1735793104976,15.21169436,204.55,204.41,23.6737095]
[1735793104977,22.94035663,204.49,204.41,23.6737095]
[1735793105176,22.94035663,204.47,204.41,0.73335287]
[1735793105393,27.94035099,204.45,204.37,22.94035663]
[1735793105592,22.94035663,204.45,204.37,23.67404815]
[1735793106083,22.94035663,204.47,204.39,22.94035663]
[1735793106282,4.99999436,204.48,204.4,0.73357176]
[1735793106603,22.94035663,204.48,204.41,22.94035663]
[1735793106786,22.94035663,204.48,204.42,0.73349292]
[1735793107376,22.94035663,204.5,204.43,22.94035663]
[1735793107580,22.94035663,204.5,204.44,0.73346682]
[1735793108193,22.94035663,204.54,204.47,22.94035663]
[1735793108385,10.2117,204.62,204.48,0.73325854]
[1735793108386,37.4241954,204.55,204.48,0.73325854]
[1735793109492,37.4241954,204.57,204.49,37.4241954]
[1735793109699,37.4241954,204.55,204.5,0.73320176]
[1735793110993,37.4241954,204.53,204.48,0.73321049]
[1735793111192,37.4241954,204.53,204.45,37.4241954]
[1735793111193,37.4241954,204.49,204.45,0.73329574]
[1735793111398,0.73280564,204.59,204.47,37.4241954]
[1735793111585,37.4241954,204.6,204.52,37.4241954]
[1735793111774,37.4241954,204.6,204.53,0.73306219]
[1735793111984,37.4241954,204.62,204.54,37.4241954]
[1735793112197,14.58599436,204.67,204.56,37.4241954]
[1735793112501,37.4241954,204.65,204.58,37.4241954]
[1735793112701,37.4241954,204.65,204.59,0.73291542]
[1735793112907,37.4241954,204.61,204.55,0.73295752]
[1735793113976,0.73280564,204.7,204.61,20.0]
[1735793114203,5.0,204.84,204.6,5.0]
[1735793114204,42.42418976,204.8,204.68,37.4241954]
[1735793114520,9.586,204.86,204.76,37.4241954]
[1735793114521,37.4241954,204.84,204.76,37.4241954]
[1735793114697,37.4241954,204.84,204.78,37.4241954]
[1735793115013,0.73280564,204.9,204.79,0.73218294]
[1735793115014,42.42418976,204.81,204.79,0.73218294]
[1735793115178,37.4241954,204.79,204.73,19.566759]
[1735793115378,37.4241954,204.79,204.68,37.4241954]
[1735793115379,37.4241954,204.76,204.69,0.73250064]
[1735793115799,37.4241954,204.76,204.69,20.30213964]
[1735793116298,37.4241954,204.78,204.7,56.9932774]
[1735793116495,37.4241954,204.78,204.71,0.73245597]
[1735793116715,37.4241954,204.8,204.72,37.4241954]
[1735793116879,37.4241954,204.82,204.74,37.4241954]
[1735793117077,37.4241954,204.84,204.76,37.4241954]
[1735793117303,37.4241954,204.84,204.77,0.7322386]
[1735793117597,37.4241954,204.88,204.8,37.4241954]
[1735793117905,37.4241954,204.88,204.81,0.73210444]
[1735793118195,42.42418976,204.88,204.81,0.73210444]
[1735793118981,42.42418976,204.82,204.74,37.4241954]
[1735793119180,37.4241954,204.84,204.76,37.4241954]
[1735793119494,37.4241954,204.86,204.78,37.4241954]
[1735793119684,37.4241954,204.86,204.79,0.73216867]
[1735793120299,37.4241954,204.86,204.8,37.4241954]
[1735793120500,4.99999436,204.85,204.81,0.73210039]
[1735793120681,4.99999436,204.85,204.8,37.4241954]
[1735793121099,4.99999436,204.87,204.8,37.4241954]
[1735793121496,4.99999436,204.87,204.81,0.73218977]
[1735793122104,4.99999436,204.87,204.8,37.4241954]
[1735793122601,37.4241954,204.88,204.8,37.4241954]
[1735793122792,4.99999436,204.9,204.83,37.4241954]
[1735793122992,4.99999436,204.9,204.84,0.73203215]
[1735793123304,14.58599436,204.92,204.85,37.4241954]
[1735793123489,37.4241954,204.93,204.87,37.4241954]
[1735793123689,4.99999436,204.94,204.87,37.4241954]
[1735793123898,37.4241954,204.95,204.88,38.15610708]
[1735793124105,14.58599436,204.98,204.91,37.4241954]
[1735793124304,1.0,205.0,204.95,37.4241954]
[1735793124509,1.0,205.0,204.96,37.4241954]
[1735793124807,1.0,205.0,204.97,37.4241954]
[1735793125198,1.0,205.0,204.98,38.15578918]
[1735793125398,1.0,205.0,204.98,37.4241954]
[1735793125811,1.0,205.0,204.99,38.15574906]
[1735793126708,37.4241954,205.15,205.01,12.1945]
[1735793126898,42.3771531,205.16,205.09,37.4241954]
[1735793127312,4.9529577,205.15,205.08,37.4241954]
[1735793127607,4.9529577,205.17,205.12,37.4241954]
[1735793127912,42.3771531,205.15,205.09,0.73116021]
[1735793128107,42.3771531,205.13,205.11,4.952957]
[1735793128303,37.4241954,205.14,205.07,37.4241954]
[1735793128612,4.9529577,205.08,205.06,19.535423]
[1735793128816,4.9529577,205.08,205.02,37.4241954]
[1735793129109,4.9529577,205.08,205.04,37.4241954]
[1735793129522,4.9529577,205.16,205.07,37.4241954]
[1735793129727,4.9529577,205.18,205.13,37.4241954]
[1735793130096,4.9529577,205.12,205.09,37.4241954]
[1735793130292,4.9529577,205.12,205.05,0.73105201]
[1735793130504,4.9529577,205.08,205.03,37.4241954]
[1735793131094,4.9529577,205.05,205.02,37.4241954]
[1735793131295,4.9529577,205.03,204.98,37.4241954]
[1735793131501,4.9529577,205.03,204.96,0.73142043]
[1735793131502,4.9529577,205.03,204.99,37.4241954]
[1735793132656,4.9529577,205.03,205.0,37.4241954]
[1735793132855,4.9529577,205.05,204.99,37.4241954]
[1735793133162,4.9529577,205.05,205.0,37.4241954]
[1735793133539,4.9529577,205.03,205.0,37.4241954]
[1735793133730,4.9529577,205.03,204.99,37.4241954]
[1735793134351,4.9529577,205.03,205.0,37.4241954]
[1735793134737,4.9529577,205.06,205.01,37.4241954]
[1735793135262,4.9529577,205.06,205.03,37.4241954]
[1735793135462,4.9529577,205.08,205.03,37.4241954]
[1735793136062,4.9529577,205.09,205.02,37.4241954]
[1735793136351,4.9529577,205.12,205.07,37.4241954]
[1735793136543,4.9529577,205.12,205.08,0.73120787]
[1735793136745,4.9529577,205.1,205.06,37.4241954]
[1735793136957,4.9529577,205.1,205.05,37.4241954]
[1735793137125,4.9529577,205.12,205.06,37.4241954]
[1735793137320,4.9529577,205.1,205.03,37.4241954]
[1735793137534,4.9529577,205.05,205.0,37.4241954]
[1735793138330,4.9529577,205.03,204.99,38.15540054]
[1735793138532,4.9529577,205.01,204.97,56.9695164]
[1735793138731,4.9529577,204.99,204.95,37.4241954]
[1735793138950,4.9529577,204.97,204.94,19.547651]
[1735793139446,4.9529577,204.95,204.91,37.4241954]
[1735793140050,4.9529577,204.91,204.9,19.551161]
[1735793140859,4.9529577,204.91,204.87,37.4241954]
[1735793141072,4.9529577,204.88,204.85,19.555134]
[1735793141268,4.9529577,204.86,204.81,37.4241954]
[1735793141561,4.9529577,204.89,204.84,37.4241954]
[1735793141770,4.9529577,204.89,204.86,37.4241954]
[1735793142360,4.9529577,204.89,204.85,37.4241954]
[1735793142748,4.9529577,204.89,204.86,37.4241954]
[1735793143944,4.9529577,204.89,204.82,0.73204488]
[1735793143945,4.9529577,204.85,204.82,0.73204488]
[1735793144139,4.9529577,204.83,204.81,37.4241954]
[1735793144331,4.9529577,204.85,204.81,37.4241954]
[1735793144537,4.9529577,204.88,204.83,37.4241954]
[1735793144755,4.9529577,204.88,204.77,19.562544]
[1735793144756,4.9529577,204.88,204.78,0.73205207]
[1735793144972,4.9529577,204.86,204.8,37.4241954]
[1735793145269,4.9529577,204.84,204.79,37.4241954]
[1735793145435,4.9529577,204.84,204.78,38.15624747]
[1735793145941,4.9529577,204.8,204.77,37.4241954]
[1735793146453,38.15700104,204.84,204.77,37.4241954]
[1735793146454,4.9529577,204.84,204.77,37.4241954]
[1735793146657,4.9529577,204.84,204.79,37.4241954]
[1735793146841,4.9529577,204.84,204.8,37.4241954]
[1735793147047,4.9529577,204.88,204.82,37.4241954]
[1735793147258,4.9529577,204.85,204.82,37.4241954]
[1735793147468,39.8487954,204.89,204.82,37.4241954]
[1735793147469,4.9529577,204.87,204.82,37.4241954]
[1735793148355,4.9529577,204.85,204.82,37.4241954]
[1735793148741,4.9529577,204.87,204.82,37.4241954]
[1735793148941,4.9529577,204.87,204.83,37.4241954]
[1735793149542,4.9529577,204.9,204.85,37.4241954]
[1735793150385,4.9529577,204.94,204.89,37.4241954]
[1735793150549,4.9529577,204.96,204.91,37.4241954]
[1735793150743,4.9529577,204.94,204.92,37.4241954]
[1735793151054,7.3775577,204.97,204.92,37.4241954]
[1735793151473,4.9529577,204.97,204.92,37.4241954]
[1735793151648,4.9529577,204.97,204.94,37.4241954]
[1735793151970,4.9529577,204.93,204.89,37.4241954]
[1735793153059,4.9529577,204.91,204.86,37.4241954]
[1735793153243,4.9529577,204.91,204.85,37.4241954]
[1735793153437,4.9529577,204.93,204.86,0.732026]
[1735793153653,4.9529577,204.93,204.87,37.4241954]
[1735793153852,4.9529577,204.89,204.86,37.4241954]
[1735793154042,4.9529577,204.91,204.86,37.4241954]
[1735793154265,4.9529577,204.91,204.87,37.4241954]
[1735793154447,4.9529577,204.94,204.88,37.4241954]
[1735793154656,4.9529577,204.94,204.89,37.4241954]
[1735793154864,23.776884,204.93,204.89,37.4241954]
[1735793155158,4.9529577,204.83,204.82,37.4241954]
[1735793155343,4.9529577,204.85,204.8,37.4241954]
[1735793155753,4.9529577,204.86,204.8,37.4241954]
[1735793156272,4.9529577,204.84,204.8,37.4241954]
[1735793156444,4.9529577,204.86,204.8,37.4241954]
[1735793156974,42.3771531,204.88,204.81,0.73218866]
[1735793157146,4.9529577,204.87,204.81,0.73218866]
[1735793157557,4.9529577,204.85,204.8,37.4241954]
[1735793158061,4.9529577,204.87,204.8,38.15641851]
[1735793158262,4.9529577,204.85,204.8,38.15641851]
[1735793159447,4.9529577,204.85,204.8,37.4241954]
[1735793159654,4.9529577,204.85,204.8,38.15643278]
[1735793160269,4.9529577,204.85,204.8,23.69083915]
[1735793161465,4.9529577,204.83,204.8,23.69083915]
[1735793161763,4.9529577,204.87,204.82,22.95860177]
[1735793161965,4.9529577,204.92,204.86,22.95860177]
[1735793162281,4.9529577,204.94,204.88,22.95860177]
[1735793162501,4.9529577,204.94,204.89,23.69047062]
[1735793162667,4.9529577,204.96,204.91,22.95860177]
[1735793162987,15.3107577,204.98,204.95,22.95860177]
[1735793163183,4.9529577,205.02,204.97,22.95860177]
[1735793163363,4.9529577,204.97,204.95,22.95860177]
[1735793163571,4.9529577,204.97,204.93,22.95860177]
[1735793164387,4.9529577,204.97,204.93,37.26283589]
[1735793165091,4.9529577,204.95,204.93,37.26283589]
[1735793165301,4.9529577,204.97,204.91,37.26283589]
[1735793165494,4.9529577,205.03,204.96,37.26283589]
[1735793165670,4.9529577,205.05,205.01,37.26283589]
[1735793166068,4.9529577,204.98,204.97,37.99438323]
[1735793166375,4.9529577,205.0,204.95,37.26283589]
[1735793166585,4.9529577,204.97,204.95,37.26283589]
[1735793167175,4.9529577,204.97,204.93,37.26283589]
[1735793167379,4.9529577,204.95,204.91,37.26283589]
[1735793168671,4.9529577,204.93,204.87,37.26283589]
[1735793168879,4.9529577,204.87,204.83,0.73192272]
[1735793169078,42.21579359,204.89,204.81,37.26283589]
[1735793169282,42.21579359,204.89,204.78,19.56129]
[1735793169283,4.9529577,204.91,204.85,37.26283589]
[1735793169484,4.9529577,204.94,204.87,37.26283589]
[1735793169680,4.9529577,204.91,204.87,37.26283589]
[1735793170085,4.9529577,204.93,204.87,37.26283589]
[1735793170287,4.9529577,204.91,204.87,37.26283589]
[1735793170475,4.9529577,204.89,204.85,37.26283589]
[1735793171410,4.9529577,204.84,204.81,37.99482869]
[1735793171592,4.9529577,204.84,204.81,37.26283589]
[1735793171894,4.9529577,204.82,204.78,20.29350176]
[1735793172200,4.9529577,204.84,204.79,37.26283589]
[1735793172410,4.9529577,204.87,204.82,37.26283589]
[1735793172997,4.9529577,204.83,204.79,37.26283589]
[1735793173573,4.9529577,204.81,204.78,57.55638441]
[1735793173777,4.9529577,204.81,204.78,56.82412589]
[1735793174497,4.9529577,204.85,204.8,37.26283589]
[1735793174701,4.9529577,204.83,204.8,37.26283589]
[1735793174998,4.9529577,204.85,204.79,37.99515244]
[1735793175203,4.9529577,204.85,204.81,37.26283589]
[1735793175579,4.9529577,204.82,204.78,56.82412589]
[1735793175795,4.9529577,204.84,204.78,56.82412589]
[1735793176321,4.9529577,204.84,204.74,0.73217187]
[1735793176322,4.9529577,204.79,204.74,37.99500776]
[1735793176525,4.9529577,204.79,204.76,19.565531]
[1735793176680,4.9529577,204.77,204.76,19.565531]
[1735793176977,4.9529577,204.81,204.76,37.26283589]
[1735793177181,4.9529577,204.79,204.76,37.26283589]
[1735793177384,42.21579359,204.79,204.73,19.568335]
[1735793177583,4.9529577,204.81,204.74,37.99525147]
[1735793177791,9.9797,204.84,204.73,19.568335]
[1735793177792,4.9529577,204.74,204.73,19.568335]
[1735793177996,4.9529577,204.69,204.62,0.73250929]
[1735793178183,4.9529577,204.73,204.67,9.9797]
[1735793178788,4.9529577,204.75,204.72,37.26283589]
[1735793178984,37.26283589,204.8,204.67,9.9797]
[1735793178985,4.9529577,204.69,204.67,9.9797]
[1735793179180,4.9529577,204.71,204.67,47.24253589]
[1735793179383,4.9529577,204.76,204.68,12.94670977]
[1735793179580,4.9529577,204.78,204.68,0.73260977]
[1735793179974,4.9529577,204.82,204.7,20.0]
[1735793180175,14.9326577,204.84,204.72,20.0]
[1735793180391,14.9326577,204.84,204.73,0.73221189]
[1735793180594,14.9326577,204.84,204.8,37.26283589]
[1735793181192,4.9529577,204.81,204.8,37.26283589]
[1735793182580,4.9529577,204.81,204.78,37.26283589]
[1735793182781,4.9529577,204.77,204.76,37.26283589]
[1735793182976,4.9529577,204.75,204.74,37.26283589]
[1735793183911,4.9529577,204.73,204.72,37.26283589]
[1735793184096,4.9529577,204.71,204.68,37.26283589]
[1735793184426,4.9529577,204.69,204.68,37.26283589]
[1735793186024,4.9529577,204.67,204.63,37.26283589]
[1735793186179,4.9529577,204.64,204.62,37.26283589]
[1735793186520,4.9529577,204.64,204.63,23.00148877]
[1735793187512,4.9529577,204.64,204.57,0.73289844]
[1735793187714,4.9529577,204.62,204.6,23.00148877]
[1735793187919,4.9529577,204.62,204.61,23.00148877]
[1735793188120,15.1033577,204.71,204.61,23.00148877]
[1735793188323,0.73280564,204.84,204.7,23.04853107]
[1735793188620,4.9529577,204.83,204.72,5.0]
[1735793188826,4.9529577,204.81,204.74,20.0]
[1735793189004,4.9529577,204.83,204.75,0.73228333]
[1735793189317,4.9529577,204.87,204.76,12.2094]
[1735793189495,4.9529577,204.87,204.84,23.00148877]
[1735793189697,4.9529577,204.86,204.84,23.00148877]
[1735793190422,4.9529577,204.83,204.8,23.00148877]
[1735793190614,4.9529577,204.81,204.8,23.00148877]
[1735793190990,4.9529577,204.81,204.78,23.00148877]
[1735793191621,4.9529577,204.79,204.78,23.00148877]
[1735793192326,4.9529577,204.83,204.78,23.00148877]
[1735793192520,4.9529577,204.83,204.81,23.00148877]
[1735793194492,4.88855986,204.83,204.81,23.00148877]
[1735793197132,4.88855986,204.78,204.77,23.00148877]
[1735793197737,4.88855986,204.83,204.77,23.00148877]
[1735793198038,4.88855986,204.85,204.82,23.00148877]
[1735793198193,4.88855986,204.85,204.84,23.00148877]
[1735793200296,4.88855986,204.89,204.84,23.00148877]
[1735793200493,4.88855986,204.91,204.87,23.00148877]
[1735793200696,4.88855986,204.88,204.87,23.00148877]
[1735793203327,4.88855986,204.86,204.83,23.00148877]
[1735793203500,10.88320564,204.92,204.82,23.00148877]
[1735793203501,4.88855986,204.83,204.82,23.00148877]
[1735793205928,4.88855986,204.85,204.82,23.00148877]
[1735793206133,4.88855986,204.85,204.84,23.00148877]
[1735793206302,4.88855986,204.87,204.84,23.00148877]
[1735793206637,4.88855986,204.87,204.86,23.00148877]
[1735793207840,4.88855986,204.85,204.83,23.00148877]
[1735793209335,4.88855986,204.87,204.83,23.00148877]
[1735793209503,4.88855986,204.87,204.85,23.00148877]
[1735793209838,4.88855986,204.87,204.83,23.00148877]
[1735793210429,4.88855986,204.87,204.85,23.00148877]
[1735793210630,5.6213655,204.91,204.85,23.00148877]
[1735793210949,4.88855986,204.94,204.89,23.00148877]
[1735793211256,4.88855986,204.94,204.93,23.00148877]
[1735793213339,4.88855986,204.91,204.85,0.73177757]
[1735793213521,4.88855986,204.91,204.88,23.00148877]
[1735793213848,4.88855986,204.93,204.9,23.00148877]
[1735793215155,4.88855986,204.91,204.9,23.00148877]
[1735793215330,4.88855986,204.89,204.88,23.00148877]
[1735793215656,15.9193655,204.94,204.88,23.00148877]
[1735793215846,4.88855986,204.99,204.93,46.00297754]
[1735793216022,4.88855986,204.99,204.95,23.00148877]
[1735793216929,10.298,205.05,204.97,23.00148877]
[1735793216930,4.88855986,205.05,204.97,23.00148877]
[1735793217140,4.88855986,205.09,205.04,23.00148877]
[1735793217320,4.88855986,205.09,205.07,23.00148877]
[1735793217535,4.88855986,205.09,205.05,23.73272262]
[1735793218042,4.88855986,205.09,205.05,0.73123385]
[1735793218242,4.88855986,205.09,205.03,23.00148877]
[1735793218243,4.88855986,205.09,205.06,0.73125318]
[1735793219330,4.88855986,205.09,205.04,0.73123395]
[1735793221331,23.00148877,205.13,205.05,23.00148877]
[1735793221629,23.00148877,205.13,205.04,12.92353395]
[1735793221630,27.89004863,205.15,205.07,23.00148877]
[1735793221829,4.88855986,205.12,205.08,0.7311224]
[1735793222034,4.88855986,205.09,205.08,0.7311224]
[1735793222239,23.00148877,205.1,205.05,0.73115237]
[1735793222547,23.00148877,205.12,205.05,0.73115237]
[1735793223256,4.88855986,205.15,205.08,23.00148877]
[1735793223444,4.88855986,205.15,205.06,12.1915]
[1735793223445,23.00148877,205.14,205.09,0.73105911]
[1735793223656,23.00148877,205.14,205.04,19.69]
[1735793223657,4.88855986,205.11,205.08,0.73112849]
[1735793223837,27.89004863,205.11,205.05,0.73124659]
[1735793224164,23.00148877,205.1,205.05,0.73124659]
[1735793224453,27.89004863,205.09,205.05,0.73124659]
[1735793224750,23.00148877,205.1,205.06,0.73130003]
[1735793224953,27.89004863,205.09,205.06,0.73130003]
[1735793225130,27.89004863,205.09,205.03,0.73130604]
[1735793225538,23.00148877,205.1,205.03,0.73130604]
[1735793225729,23.00148877,205.1,205.03,23.73279481]
[1735793225926,27.89004863,205.11,205.03,23.73279481]
[1735793226241,3.38190564,205.2,205.06,23.00148877]
[1735793226242,4.88855986,205.15,205.06,23.00148877]
[1735793226442,23.00148877,205.14,205.07,23.73256479]
[1735793226650,4.88855986,205.12,205.07,0.73107602]
[1735793226855,23.00148877,205.11,205.07,0.73107602]
[1735793227357,23.00148877,205.11,205.05,0.73121023]
[1735793227555,2.6491,205.2,205.05,0.73121023]
[1735793227556,27.89004863,205.1,205.05,0.73121023]
[1735793227742,23.00148877,205.1,205.05,0.73121023]
[1735793228051,4.88855986,205.13,205.0,0.73121792]
[1735793228052,27.89004863,205.06,205.0,0.73121792]
[1735793228355,23.00148877,205.01,204.97,0.73142015]
[1735793228856,27.89004863,205.0,204.97,0.73142015]
[1735793229163,0.73280564,205.09,204.92,37.80938877]
[1735793229164,27.89004863,204.98,204.94,0.73160439]
[1735793229359,23.00148877,204.97,204.94,0.73160439]
[1735793229562,23.00148877,204.97,204.9,0.73170557]
[1735793229854,23.00148877,204.96,204.9,20.27774657]
[1735793230164,23.00148877,204.95,204.9,20.27774657]
[1735793230454,23.00148877,204.94,204.9,0.73170557]
[1735793230658,23.00148877,204.95,204.88,0.73180075]
[1735793230968,4.88855986,204.94,204.88,0.73180075]
[1735793231258,27.89004863,204.94,204.88,0.73180075]
[1735793231454,27.89004863,204.92,204.88,0.73180075]
[1735793231664,27.89004863,204.92,204.86,0.73194446]
[1735793232155,23.00148877,204.95,204.88,23.00148877]
[1735793232462,27.89004863,204.98,204.9,23.00148877]
[1735793232635,4.88855986,204.98,204.93,23.00148877]